fUST/lending_fUST_20250405
["ID","MTS","AMOUNT","RATE_DAILY","PERIOD"]
[357175340,1743859852924,-12522.71377557,0.00021555,3]
[357175341,1743859852933,-500.0,0.00021643,2]
[357175342,1743859852942,-500.0,0.00021643,2]
[357175343,1743859852951,-500.0,0.00021643,2]
[357175344,1743859852961,-500.0,0.00021643,2]
[357175345,1743859852971,-500.0,0.00021643,2]
[357175346,1743859852980,-500.0,0.00021643,2]
[357175347,1743859852990,-710.35,0.00021643,2]
[357175348,1743859852999,-500.0,0.00021643,2]
[357175349,1743859853008,-961.8,0.00021643,2]
[357175350,1743859853018,-500.0,0.00021643,2]
[357175351,1743859853027,-500.0,0.00021643,2]
[357175352,1743859853036,-852.98,0.00021643,2]
[357175353,1743859853046,-500.0,0.00021643,2]
[357175354,1743859853055,-500.0,0.00021643,2]
[357175355,1743859853064,-207.52058057,0.00021643,2]
[357175356,1743859853074,-938.67,0.00021643,2]
[357175357,1743859853083,-500.0,0.00021643,2]
[357175358,1743859853093,-500.0,0.00021643,2]
[357175359,1743859853102,-500.0,0.00021643,2]
[357175360,1743859853112,-500.0,0.00021643,2]
[357175361,1743859853121,-500.0,0.00021643,2]
[357175362,1743859853131,-500.0,0.00021643,2]
[357175363,1743859853140,-500.0,0.00021643,2]
[357175364,1743859853149,-500.0,0.00021643,2]
[357175365,1743859853158,-500.0,0.00021643,2]
[357175366,1743859853168,-500.0,0.00021643,2]
[357175367,1743859853179,-500.0,0.00021643,2]
[357175368,1743859853189,-500.0,0.00021643,2]
[357175369,1743859853198,-500.0,0.00021643,2]
[357175370,1743859853207,-500.0,0.00021643,2]
[357175371,1743859853217,-500.0,0.00021643,2]
[357175372,1743859853227,-500.0,0.00021643,2]
[357175373,1743859853236,-500.0,0.00021643,2]
[357175374,1743859853245,-500.0,0.00021643,2]
[357175375,1743859853256,-500.0,0.00021643,2]
[357175376,1743859853267,-500.0,0.00021643,2]
[357175377,1743859853277,-500.0,0.00021643,2]
[357175378,1743859853286,-500.0,0.00021643,2]
[357175379,1743859853296,-500.0,0.00021643,2]
[357175380,1743859853305,-500.0,0.00021643,2]
[357175381,1743859853315,-500.0,0.00021643,2]
[357175382,1743859853324,-379.9202219,0.00021643,2]
[357175383,1743859853334,-500.0,0.00021643,2]
[357175384,1743859853343,-500.0,0.00021643,2]
[357175385,1743859853353,-500.0,0.00021643,2]
[357175386,1743859853362,-500.0,0.00021643,2]
[357175387,1743859853372,-500.0,0.00021643,2]
[357175388,1743859853381,-500.0,0.00021643,2]
[357175389,1743859853391,-500.0,0.00021643,2]
[357175390,1743859853401,-500.0,0.00021643,2]
[357175391,1743859853410,-510.53,0.00021643,2]
[357175392,1743859853419,-500.0,0.00021643,2]
[357175393,1743859853429,-500.0,0.00021643,2]
[357175394,1743859853438,-500.0,0.00021643,2]
[357175395,1743859853448,-500.0,0.00021643,2]
[357175396,1743859853457,-500.0,0.00021643,2]
[357175397,1743859853468,-953.92,0.00021643,2]
[357175398,1743859853480,-500.0,0.00021643,2]
[357175399,1743859853490,-500.0,0.00021643,2]
[357175400,1743859853499,-500.0,0.00021643,2]
[357175401,1743859853509,-1128.6,0.00021643,2]
[357175402,1743859853518,-500.0,0.00021643,2]
[357175403,1743859853528,-500.0,0.00021643,2]
[357175404,1743859853537,-3429.77,0.00021643,2]
[357175405,1743859853547,-1872.54,0.00021643,2]
[357175406,1743859853558,-555.9,0.00021643,2]
[357175407,1743859853568,-3080.4,0.00021643,2]
[357175408,1743859853578,-933.84,0.00021643,2]
[357175409,1743859853588,-1244.89,0.00021643,2]
[357175410,1743859853598,-500.0,0.00021643,2]
[357175411,1743859853608,-8059.55,0.00021643,2]
[357175412,1743859853618,-500.0,0.00021643,2]
[357175413,1743859853628,-500.0,0.00021643,2]
[357175414,1743859853639,-500.0,0.00021643,2]
[357175415,1743859853648,-1252.18,0.00021643,2]
[357175416,1743859853658,-500.0,0.00021643,2]
[357175417,1743859853668,-2473.04,0.00021643,2]
[357175418,1743859853678,-1572.71,0.00021643,2]
[357175419,1743859853687,-678.98,0.00021643,2]
[357175420,1743859853697,-571.2,0.00021643,2]
[357175421,1743859853707,-3271.08,0.00021643,2]
[357175422,1743859853717,-500.0,0.00021643,2]
[357175423,1743859853727,-500.0,0.00021643,2]
[357175424,1743859853745,-8408.16,0.00021643,2]
[357175425,1743859853754,-1191.1,0.00021643,2]
[357175426,1743859853764,-500.0,0.00021643,2]
[357175427,1743859853773,-4899.66,0.00021643,2]
[357175428,1743859853783,-500.0,0.00021643,2]
[357175429,1743859853794,-289.6913106,0.00021643,2]
[357175430,1743859853803,-885.72,0.00021643,2]
[357175431,1743859853813,-500.0,0.00021643,2]
[357175432,1743859853822,-696.05,0.00021643,2]
[357175433,1743859853832,-500.0,0.00021643,2]
[357175434,1743859853842,-500.0,0.00021643,2]
[357175435,1743859853852,-500.0,0.00021643,2]
[357175436,1743859853861,-500.0,0.00021643,2]
[357175437,1743859853871,-2077.48,0.00021643,2]
[357175438,1743859853880,-569.02,0.00021643,2]
[357175439,1743859853890,-2289.66,0.00021643,2]
[357175440,1743859853899,-500.0,0.00021643,2]
[357175441,1743859853909,-679.83,0.00021643,2]
[357175442,1743859853918,-49435.46,0.00021643,2]
[357175443,1743859853997,-2044.32,0.00021643,2]
[357175444,1743859854007,-3160.91,0.00021643,2]
[357175445,1743859854016,-500.0,0.00021643,2]
[357175446,1743859854026,-867.48,0.00021643,2]
[357175447,1743859854037,-1005.19,0.00021643,2]
[357175448,1743859854047,-1762.72,0.00021643,2]
[357175449,1743859854057,-500.0,0.00021643,2]
[357175450,1743859854066,-500.0,0.00021643,2]
[357175451,1743859854076,-500.0,0.00021643,2]
[357175452,1743859854085,-5023.77,0.00021643,2]
[357175453,1743859854094,-500.0,0.00021643,2]
[357175454,1743859854104,-737.72,0.00021643,2]
[357175455,1743859854114,-973.86,0.00021643,2]
[357175456,1743859854123,-500.0,0.00021643,2]
[357175457,1743859854132,-151.0,0.00021643,2]
[357175458,1743859854141,-500.0,0.00021643,2]
[357175459,1743859854151,-500.0,0.00021643,2]
[357175460,1743859854161,-500.0,0.00021643,2]
[357175461,1743859854171,-500.96,0.00021643,2]
[357175462,1743859854180,-500.05,0.00021643,2]
[357175463,1743859854190,-990.94,0.00021643,2]
[357175464,1743859854199,-500.0,0.00021643,2]
[357175465,1743859854209,-500.0,0.00021643,2]
[357175466,1743859854219,-1947.85,0.00021643,2]
[357175467,1743859854229,-968.64,0.00021643,2]
[357175468,1743859854238,-500.0,0.00021643,2]
[357175469,1743859854247,-924.68,0.00021643,2]
[357175470,1743859854257,-500.0,0.00021643,2]
[357175471,1743859854266,-9164.62942668,0.00021797,3]
[357175472,1743859854276,-500.0,0.00021917,2]
[357175473,1743859854285,-229.84,0.00021917,2]
[357175474,1743859854295,-500.0,0.00021917,2]
[357175475,1743859854305,-500.0,0.00021917,2]
[357175476,1743859854314,-500.0,0.00021917,2]
[357175477,1743859854323,-710.35,0.00021917,2]
[357175478,1743859854333,-500.0,0.00021917,2]
[357175479,1743859854343,-961.8,0.00021917,2]
[357175480,1743859854353,-852.98,0.00021917,2]
[357175481,1743859854362,-526.24,0.00021917,2]
[357175482,1743859854372,-938.67,0.00021917,2]
[357175483,1743859854382,-500.0,0.00021917,2]
[357175484,1743859854391,-500.0,0.00021917,2]
[357175485,1743859854400,-500.0,0.00021917,2]
[357175486,1743859854409,-500.0,0.00021917,2]
[357175487,1743859854419,-500.0,0.00021917,2]
[357175488,1743859854429,-500.0,0.00021917,2]
[357175489,1743859854438,-151.0,0.00021917,2]
[357175490,1743859854448,-508.42106177,0.00021917,2]
[357175491,1743859854457,-500.0,0.00021917,2]
[357175492,1743859854469,-500.0,0.00021917,2]
[357175493,1743859854480,-500.0,0.00021917,2]
[357175494,1743859854490,-500.0,0.00021917,2]
[357175495,1743859854500,-500.0,0.00021917,2]
[357175496,1743859854511,-500.0,0.00021917,2]
[357175497,1743859854520,-500.0,0.00021917,2]
[357175498,1743859854530,-500.0,0.00021917,2]
[357175499,1743859854541,-151.0,0.00021917,2]
[357175500,1743859854551,-500.0,0.00021917,2]
[357175501,1743859854561,-500.0,0.00021917,2]
[357175502,1743859854570,-500.0,0.00021917,2]
[357175503,1743859854581,-500.0,0.00021917,2]
[357175504,1743859854591,-500.0,0.00021917,2]
[357175505,1743859854600,-500.0,0.00021917,2]
[357175506,1743859854610,-500.0,0.00021917,2]
[357175507,1743859854619,-500.0,0.00021917,2]
[357175508,1743859854630,-500.0,0.00021917,2]
[357175509,1743859854639,-500.0,0.00021917,2]
[357175510,1743859854650,-500.0,0.00021917,2]
[357175511,1743859854659,-500.0,0.00021917,2]
[357175512,1743859854669,-500.0,0.00021917,2]
[357175513,1743859854681,-500.0,0.00021917,2]
[357175514,1743859854692,-500.0,0.00021917,2]
[357175515,1743859854702,-500.0,0.00021917,2]
[357175516,1743859854712,-297.14,0.00021917,2]
[357175517,1743859854722,-500.0,0.00021917,2]
[357175518,1743859854733,-510.53,0.00021917,2]
[357175519,1743859854743,-151.0,0.00021917,2]
[357175520,1743859854753,-151.0,0.00021917,2]
[357175521,1743859854763,-500.0,0.00021917,2]
[357175522,1743859854772,-500.0,0.00021917,2]
[357175523,1743859854783,-500.0,0.00021917,2]
[357175524,1743859854793,-500.0,0.00021917,2]
[357175525,1743859854803,-563.44,0.00021917,2]
[357175526,1743859854813,-953.92,0.00021917,2]
[357175527,1743859854823,-500.0,0.00021917,2]
[357175528,1743859854832,-500.0,0.00021917,2]
[357175529,1743859854841,-500.0,0.00021917,2]
[357175530,1743859854851,-1128.6,0.00021917,2]
[357175531,1743859854860,-500.0,0.00021917,2]
[357175532,1743859854870,-500.0,0.00021917,2]
[357175533,1743859854880,-3429.77,0.00021917,2]
[357175534,1743859854890,-1872.54,0.00021917,2]
[357175535,1743859854899,-555.9,0.00021917,2]
[357175536,1743859854909,-3080.4,0.00021917,2]
[357175537,1743859854919,-933.84,0.00021917,2]
[357175538,1743859854928,-1244.89,0.00021917,2]
[357175539,1743859854938,-500.0,0.00021917,2]
[357175540,1743859854947,-8059.55,0.00021917,2]
[357175541,1743859854956,-500.0,0.00021917,2]
[357175542,1743859854967,-500.0,0.00021917,2]
[357175543,1743859854976,-500.0,0.00021917,2]
[357175544,1743859854986,-1252.18,0.00021917,2]
[357175545,1743859854996,-500.0,0.00021917,2]
[357175546,1743859855005,-2473.04,0.00021917,2]
[357175547,1743859855015,-1572.71,0.00021917,2]
[357175548,1743859855025,-678.98,0.00021917,2]
[357175549,1743859855035,-3271.08,0.00021917,2]
[357175550,1743859855046,-500.0,0.00021917,2]
[357175551,1743859855055,-500.0,0.00021917,2]
[357175552,1743859855065,-8408.16,0.00021917,2]
[357175553,1743859855074,-1191.1,0.00021917,2]
[357175554,1743859855084,-4899.66,0.00021917,2]
[357175555,1743859855094,-500.0,0.00021917,2]
[357175556,1743859855104,-885.72,0.00021917,2]
[357175557,1743859855114,-500.0,0.00021917,2]
[357175558,1743859855124,-696.05,0.00021917,2]
[357175559,1743859855135,-500.0,0.00021917,2]
[357175560,1743859855145,-500.0,0.00021917,2]
[357175561,1743859855155,-500.0,0.00021917,2]
[357175562,1743859855164,-500.0,0.00021917,2]
[357175563,1743859855174,-2077.48,0.00021917,2]
[357175564,1743859855184,-569.02,0.00021917,2]
[357175565,1743859855194,-2289.66,0.00021917,2]
[357175566,1743859855205,-500.0,0.00021917,2]
[357175567,1743859855215,-679.83,0.00021917,2]
[357175568,1743859855226,-49435.46,0.00021917,2]
[357175569,1743859855236,-2044.32,0.00021917,2]
[357175570,1743859855247,-3160.91,0.00021917,2]
[357175571,1743859855257,-500.0,0.00021917,2]
[357175572,1743859855267,-867.48,0.00021917,2]
[357175573,1743859855343,-1005.19,0.00021917,2]
[357175574,1743859855353,-1762.72,0.00021917,2]
[357175575,1743859855363,-500.0,0.00021917,2]
[357175576,1743859855372,-500.0,0.00021917,2]
[357175577,1743859855382,-500.0,0.00021917,2]
[357175578,1743859855392,-5023.77,0.00021917,2]
[357175579,1743859855402,-500.0,0.00021917,2]
[357175580,1743859855412,-737.72,0.00021917,2]
[357175581,1743859855422,-973.86,0.00021917,2]
[357175582,1743859855432,-500.0,0.00021917,2]
[357175583,1743859855442,-500.0,0.00021917,2]
[357175584,1743859855452,-500.0,0.00021917,2]
[357175585,1743859855462,-500.0,0.00021917,2]
[357175586,1743859855474,-500.96,0.00021917,2]
[357175587,1743859855484,-500.05,0.00021917,2]
[357175588,1743859855493,-990.94,0.00021917,2]
[357175589,1743859855503,-500.0,0.00021917,2]
[357175590,1743859855513,-500.0,0.00021917,2]
[357175591,1743859855523,-1947.85,0.00021917,2]
[357175592,1743859855532,-968.64,0.00021917,2]
[357175593,1743859855543,-500.0,0.00021917,2]
[357175594,1743859855554,-924.68,0.00021917,2]
[357175595,1743859855564,-2000.0,0.00022,4]
[357175596,1743859855574,-151.0,0.00022078,2]
[357175597,1743859855583,-215.0738,0.00022078,2]
[357175598,1743859855593,-304.57,0.00022191,2]
[357175599,1743859855604,-500.0,0.00022191,2]
[357175600,1743859855614,-324.15474304,0.00022191,2]
[357175601,1743859855624,-500.0,0.00022191,2]
[357175602,1743859855634,-710.35,0.00022191,2]
[357175603,1743859855643,-500.0,0.00022191,2]
[357175604,1743859855653,-961.8,0.00022191,2]
[357175605,1743859855663,-852.98,0.00022191,2]
[357175606,1743859855672,-938.67,0.00022191,2]
[357175607,1743859855682,-500.0,0.00022191,2]
[357175608,1743859855691,-500.0,0.00022191,2]
[357175609,1743859855701,-500.0,0.00022191,2]
[357175610,1743859855710,-500.0,0.00022191,2]
[357175611,1743859855720,-500.0,0.00022191,2]
[357175612,1743859855730,-500.0,0.00022191,2]
[357175613,1743859855739,-500.0,0.00022191,2]
[357175614,1743859855749,-500.0,0.00022191,2]
[357175615,1743859855760,-500.0,0.00022191,2]
[357175616,1743859855770,-500.0,0.00022191,2]
[357175617,1743859855782,-500.0,0.00022191,2]
[357175618,1743859855793,-500.0,0.00022191,2]
[357175619,1743859855803,-500.0,0.00022191,2]
[357175620,1743859855812,-500.0,0.00022191,2]
[357175621,1743859855821,-500.0,0.00022191,2]
[357175622,1743859855831,-500.0,0.00022191,2]
[357175623,1743859855840,-500.0,0.00022191,2]
[357175624,1743859855850,-500.0,0.00022191,2]
[357175625,1743859855860,-304.63454012,0.00022191,2]
[357175626,1743859855870,-500.0,0.00022191,2]
[357175627,1743859855879,-500.0,0.00022191,2]
[357175628,1743859855889,-500.0,0.00022191,2]
[357175629,1743859855899,-500.0,0.00022191,2]
[357175630,1743859855908,-500.0,0.00022191,2]
[357175631,1743859855918,-500.0,0.00022191,2]
[357175632,1743859855928,-510.53,0.00022191,2]
[357175633,1743859855938,-500.0,0.00022191,2]
[357175634,1743859855948,-500.0,0.00022191,2]
[357175635,1743859855958,-500.0,0.00022191,2]
[357175636,1743859855968,-180.02619446,0.00022191,2]
[357175637,1743859855978,-953.92,0.00022191,2]
[357175638,1743859855987,-500.0,0.00022191,2]
[357175639,1743859855997,-500.0,0.00022191,2]
[357175640,1743859856007,-500.0,0.00022191,2]
[357175641,1743859856016,-1128.6,0.00022191,2]
[357175642,1743859856026,-500.0,0.00022191,2]
[357175643,1743859856035,-500.0,0.00022191,2]
[357175644,1743859856046,-3429.77,0.00022191,2]
[357175645,1743859856056,-1872.54,0.00022191,2]
[357175646,1743859856066,-555.9,0.00022191,2]
[357175647,1743859856076,-3080.4,0.00022191,2]
[357175648,1743859856086,-933.84,0.00022191,2]
[357175649,1743859856096,-1244.89,0.00022191,2]
[357175650,1743859856106,-500.0,0.00022191,2]
[357175651,1743859856115,-8059.55,0.00022191,2]
[357175652,1743859856125,-500.0,0.00022191,2]
[357175653,1743859856135,-500.0,0.00022191,2]
[357175654,1743859856144,-500.0,0.00022191,2]
[357175655,1743859856154,-1252.18,0.00022191,2]
[357175656,1743859856164,-500.0,0.00022191,2]
[357175657,1743859856173,-2473.04,0.00022191,2]
[357175658,1743859856183,-1572.71,0.00022191,2]
[357175659,1743859856193,-678.98,0.00022191,2]
[357175660,1743859856202,-3271.08,0.00022191,2]
[357175661,1743859856212,-500.0,0.00022191,2]
[357175662,1743859856222,-500.0,0.00022191,2]
[357175663,1743859856232,-8408.16,0.00022191,2]
[357175664,1743859856242,-1191.1,0.00022191,2]
[357175665,1743859856252,-4899.66,0.00022191,2]
[357175666,1743859856262,-500.0,0.00022191,2]
[357175667,1743859856272,-885.72,0.00022191,2]
[357175668,1743859856282,-500.0,0.00022191,2]
[357175669,1743859856293,-696.05,0.00022191,2]
[357175670,1743859856303,-500.0,0.00022191,2]
[357175671,1743859856312,-500.0,0.00022191,2]
[357175672,1743859856322,-500.0,0.00022191,2]
[357175673,1743859856332,-500.0,0.00022191,2]
[357175674,1743859856341,-2077.48,0.00022191,2]
[357175675,1743859856351,-569.02,0.00022191,2]
[357175676,1743859856361,-2289.66,0.00022191,2]
[357175677,1743859856371,-500.0,0.00022191,2]
[357175678,1743859856380,-679.83,0.00022191,2]
[357175679,1743859856390,-49435.46,0.00022191,2]
[357175680,1743859856400,-2044.32,0.00022191,2]
[357175681,1743859856410,-3160.91,0.00022191,2]
[357175682,1743859856420,-500.0,0.00022191,2]
[357175683,1743859856430,-867.48,0.00022191,2]
[357175684,1743859856439,-1005.19,0.00022191,2]
[357175685,1743859856449,-1762.72,0.00022191,2]
[357175686,1743859856459,-500.0,0.00022191,2]
[357175687,1743859856472,-500.0,0.00022191,2]
[357175688,1743859856482,-500.0,0.00022191,2]
[357175689,1743859856492,-5023.77,0.00022191,2]
[357175690,1743859856502,-500.0,0.00022191,2]
[357175691,1743859856515,-737.72,0.00022191,2]
[357175692,1743859856592,-973.86,0.00022191,2]
[357175693,1743859856603,-520.02388893,0.00022191,2]
[357175694,1743859856613,-224.0557,0.00022191,7]
[357175695,1743859856623,-500.0,0.00022191,2]
[357175696,1743859856633,-500.0,0.00022191,2]
[357175697,1743859856643,-500.96,0.00022191,2]
[357175698,1743859856653,-500.05,0.00022191,2]
[357175699,1743859856663,-990.94,0.00022191,2]
[357175700,1743859856673,-500.0,0.00022191,2]
[357175701,1743859856683,-500.0,0.00022191,2]
[357175702,1743859856693,-1947.85,0.00022191,2]
[357175703,1743859856703,-968.64,0.00022191,2]
[357175704,1743859856713,-500.0,0.00022191,2]
[357175705,1743859856723,-924.68,0.00022191,2]
[357175706,1743859856732,-151.0,0.00022465,7]
[357175707,1743859856741,-186.00599188,0.00022465,2]
[357175708,1743859856750,-710.35,0.00022465,2]
[357175709,1743859856760,-500.0,0.00022465,2]
[357175710,1743859856769,-961.8,0.00022465,2]
[357175711,1743859856779,-852.98,0.00022465,2]
[357175712,1743859856789,-938.67,0.00022465,2]
[357175713,1743859856798,-500.0,0.00022465,2]
[357175714,1743859856808,-500.0,0.00022465,2]
[357175715,1743859856817,-500.0,0.00022465,2]
[357175716,1743859856827,-500.0,0.00022465,2]
[357175717,1743859856837,-500.0,0.00022465,2]
[357175718,1743859856846,-500.0,0.00022465,2]
[357175719,1743859856856,-500.0,0.00022465,2]
[357175720,1743859856865,-171.63807145,0.00022465,2]
[357175721,1743859856875,-500.0,0.00022465,2]
[357175722,1743859856884,-500.0,0.00022465,2]
[357175723,1743859856894,-381.26758276,0.00022465,2]
[357175724,1743859856903,-500.0,0.00022465,2]
[357175725,1743859856913,-500.0,0.00022465,2]
[357175726,1743859856922,-500.0,0.00022465,2]
[357175727,1743859856931,-500.0,0.00022465,2]
[357175728,1743859856940,-500.0,0.00022465,2]
[357175729,1743859856949,-500.0,0.00022465,2]
[357175730,1743859856959,-510.53,0.00022465,2]
[357175731,1743859856968,-151.0,0.00022465,7]
[357175732,1743859856977,-151.0,0.00022465,7]
[357175733,1743859856986,-500.0,0.00022465,2]
[357175734,1743859856996,-500.0,0.00022465,2]
[357175735,1743859857005,-500.0,0.00022465,2]
[357175736,1743859857015,-953.92,0.00022465,2]
[357175737,1743859857023,-202.82888636,0.00022465,2]
[357175738,1743859857033,-500.0,0.00022465,2]
[357175739,1743859857043,-500.0,0.00022465,2]
[357175740,1743859857053,-1128.6,0.00022465,2]
[357175741,1743859857062,-593.87924853,0.00022465,2]
[357175742,1743859857072,-500.0,0.00022465,2]
[357175743,1743859857081,-3429.77,0.00022465,2]
[357175744,1743859857091,-1872.54,0.00022465,2]
[357175745,1743859857100,-555.9,0.00022465,2]
[357175746,1743859857111,-3080.4,0.00022465,2]
[357175747,1743859857120,-933.84,0.00022465,2]
[357175748,1743859857130,-1244.89,0.00022465,2]
[357175749,1743859857140,-8059.55,0.00022465,2]
[357175750,1743859857150,-554.0,0.00022465,2]
[357175751,1743859857160,-500.0,0.00022465,2]
[357175752,1743859857170,-500.0,0.00022465,2]
[357175753,1743859857180,-1252.18,0.00022465,2]
[357175754,1743859857190,-500.0,0.00022465,2]
[357175755,1743859857200,-2473.04,0.00022465,2]
[357175756,1743859857209,-500.0,0.00022465,2]
[357175757,1743859857219,-1572.71,0.00022465,2]
[357175758,1743859857228,-678.98,0.00022465,2]
[357175759,1743859857238,-3271.08,0.00022465,2]
[357175760,1743859857247,-500.0,0.00022465,2]
[357175761,1743859857257,-500.0,0.00022465,2]
[357175762,1743859857266,-8408.16,0.00022465,2]
[357175763,1743859857276,-1191.1,0.00022465,2]
[357175764,1743859857285,-4899.66,0.00022465,2]
[357175765,1743859857295,-500.0,0.00022465,2]
[357175766,1743859857304,-885.72,0.00022465,2]
[357175767,1743859857314,-500.0,0.00022465,2]
[357175768,1743859857323,-696.05,0.00022465,2]
[357175769,1743859857333,-500.0,0.00022465,2]
[357175770,1743859857343,-500.0,0.00022465,2]
[357175771,1743859857352,-500.0,0.00022465,2]
[357175772,1743859857361,-223.4,0.00022465,2]
[357175773,1743859857370,-2077.48,0.00022465,2]
[357175774,1743859857380,-569.02,0.00022465,2]
[357175775,1743859857390,-2289.66,0.00022465,2]
[357175776,1743859857400,-500.0,0.00022465,2]
[357175777,1743859857410,-679.83,0.00022465,2]
[357175778,1743859857419,-49435.46,0.00022465,2]
[357175779,1743859857429,-2044.32,0.00022465,2]
[357175780,1743859857439,-3160.91,0.00022465,2]
[357175781,1743859857449,-500.0,0.00022465,2]
[357175782,1743859857459,-867.48,0.00022465,2]
[357175783,1743859857469,-1005.19,0.00022465,2]
[357175784,1743859857480,-1762.72,0.00022465,2]
[357175785,1743859857490,-200.90538319,0.00022465,2]
[357175786,1743859857500,-500.0,0.00022465,2]
[357175787,1743859857510,-500.0,0.00022465,2]
[357175788,1743859857520,-5023.77,0.00022465,2]
[357175789,1743859857529,-500.0,0.00022465,2]
[357175790,1743859857539,-737.72,0.00022465,2]
[357175791,1743859857552,-973.86,0.00022465,2]
[357175792,1743859857562,-500.0,0.00022465,2]
[357175793,1743859857571,-500.0,0.00022465,2]
[357175794,1743859857580,-500.96,0.00022465,2]
[357175795,1743859857590,-500.05,0.00022465,2]
[357175796,1743859857600,-990.94,0.00022465,2]
[357175797,1743859857609,-500.0,0.00022465,2]
[357175798,1743859857619,-500.0,0.00022465,2]
[357175799,1743859857629,-1947.85,0.00022465,2]
[357175800,1743859857638,-968.64,0.00022465,2]
[357175801,1743859857648,-500.0,0.00022465,2]
[357175802,1743859857719,-924.68,0.00022465,2]
[357175803,1743859857729,-9164.62942668,0.00022521,4]
[357175804,1743859857738,-2100.0,0.00022568,2]
[357175805,1743859857748,-710.35,0.00022739,2]
[357175806,1743859857759,-500.0,0.00022739,2]
[357175807,1743859857769,-961.8,0.00022739,2]
[357175808,1743859857778,-852.98,0.00022739,2]
[357175809,1743859857788,-938.67,0.00022739,2]
[357175810,1743859857800,-500.0,0.00022739,2]
[357175811,1743859857809,-500.0,0.00022739,2]
[357175812,1743859857818,-500.0,0.00022739,2]
[357175813,1743859857828,-500.0,0.00022739,2]
[357175814,1743859857837,-500.0,0.00022739,2]
[357175815,1743859857846,-500.0,0.00022739,2]
[357175816,1743859857856,-500.0,0.00022739,2]
[357175817,1743859857865,-500.0,0.00022739,2]
[357175818,1743859857875,-500.0,0.00022739,2]
[357175819,1743859857884,-500.0,0.00022739,2]
[357175820,1743859857894,-500.0,0.00022739,2]
[357175821,1743859857903,-510.53,0.00022739,2]
[357175822,1743859857913,-500.0,0.00022739,2]
[357175823,1743859857922,-500.0,0.00022739,2]
[357175824,1743859857931,-274.89730025,0.00022739,2]
[357175825,1743859857941,-953.92,0.00022739,2]
[357175826,1743859857951,-500.0,0.00022739,2]
[357175827,1743859857960,-500.0,0.00022739,2]
[357175828,1743859857969,-1128.6,0.00022739,2]
[357175829,1743859857979,-500.0,0.00022739,2]
[357175830,1743859857989,-3429.77,0.00022739,2]
[357175831,1743859857998,-1872.54,0.00022739,2]
[357175832,1743859858007,-555.9,0.00022739,2]
[357175833,1743859858016,-3080.4,0.00022739,2]
[357175834,1743859858026,-933.84,0.00022739,2]
[357175835,1743859858036,-1244.89,0.00022739,2]
[357175836,1743859858046,-8059.55,0.00022739,2]
[357175837,1743859858056,-500.0,0.00022739,2]
[357175838,1743859858066,-500.0,0.00022739,2]
[357175839,1743859858075,-1252.18,0.00022739,2]